bitfinex/quotes_ETHUSD_20240702
["timestamp","ask_amount","ask_price","bid_price","bid_amount"]
[1719879529760,0.14532887,3438.9,3438.8,0.724]
[1719879529955,5.19793,3439.3,3438.8,0.724]
[1719879530173,0.14532887,3438.9,3438.8,0.724]
[1719879530375,5.19793,3439.3,3438.8,0.724]
[1719879530536,0.14532887,3438.9,3438.8,0.724]
[1719879530736,5.19793,3439.3,3438.8,0.724]
[1719879530972,0.14532887,3438.9,3438.8,0.724]
[1719879531175,5.19793,3439.3,3438.8,0.724]
[1719879531360,0.14532887,3438.9,3438.8,0.724]
[1719879531946,2.90767,3439.2,3438.5,2.90823]
[1719879532150,0.14532887,3438.9,3438.8,0.724]
[1719879532351,2.90767,3439.2,3438.8,0.724]
[1719879532578,0.14532887,3438.9,3438.8,0.724]
[1719879532775,2.90767,3439.2,3438.8,0.724]
[1719879532948,0.14532887,3438.9,3438.8,0.724]
[1719879533509,2.422,3438.8,3437.9,0.724]
[1719879533651,2.3077,3438.4,3437.8,3.63283]
[1719879534094,0.14528371,3438.3,3438.0,0.724]
[1719879534290,5.21589,3438.6,3438.0,0.724]
[1719879534474,0.14528371,3438.2,3438.0,0.724]
[1719879534659,2.9083,3438.5,3437.8,2.90883]
[1719879534988,2.9083,3438.5,3438.1,0.71930477]
[1719879535285,3.720709,3438.5,3437.7,3.0]
[1719879535491,2.90853,3438.2,3437.9,0.724]
[1719879536264,2.90842,3438.3,3437.7,3.0]
[1719879536548,2.90842,3438.3,3437.8,0.724]
[1719879536859,0.3720839,3438.2,3437.8,0.724]
[1719879537067,2.90842,3438.3,3437.8,0.724]
[1719879539089,2.90855,3438.2,3437.4,2.90916]
[1719879539382,2.90855,3438.2,3437.6,0.724]
[1719879539383,2.3378,3438.1,3437.6,0.724]
[1719879540213,0.14506077,3438.0,3437.4,2.90916]
[1719879540402,2.90886,3437.8,3437.6,0.724]
[1719879540709,0.24828608,3437.9,3437.7,0.724]
[1719879540897,3.15703608,3437.9,3437.7,0.724]
[1719879541052,0.24828608,3437.9,3437.7,0.724]
[1719879541254,2.90859,3438.1,3437.7,0.724]
[1719879542395,2.90843,3438.3,3437.9,0.724]
[1719879542602,0.15826193,3438.2,3437.9,0.724]
[1719879542800,0.80208471,3438.1,3437.9,0.724]
[1719879543308,8.31436,3438.4,3437.9,0.724]
[1719879543467,8.31436,3438.4,3438.3,0.724]
[1719879543791,8.47263513,3438.4,3438.3,0.724]
[1719879544087,7.16328412,3438.5,3438.3,0.724]
[1719879545794,8.40669953,3438.5,3437.9,2.90874]
[1719879545996,8.40669953,3438.5,3438.3,0.724]
[1719879547577,4.15166541,3438.5,3438.1,0.724]
[1719879547772,0.52934017,3438.4,3438.1,0.724]
[1719879548111,0.3710883,3438.4,3438.1,0.724]
[1719879548479,0.15824338,3438.3,3438.1,0.724]
[1719879548814,0.3710883,3438.4,3438.1,0.724]
[1719879548974,2.2974,3438.2,3437.7,3.0]
[1719879549170,2.2974,3438.2,3437.9,0.724]
[1719879549374,5.2059,3438.2,3437.9,0.724]
[1719879549583,5.2059,3438.2,3437.3,5.90925]
[1719879549813,3.06682587,3438.1,3437.8,0.724]
[1719879550014,0.56921597,3438.0,3437.8,0.724]
[1719879550202,3.23638383,3438.3,3437.8,0.724]
[1719879550383,3.23638383,3438.3,3437.5,2.90906]
[1719879550384,0.1582367,3438.2,3438.0,0.724]
[1719879550741,0.91548158,3438.1,3438.0,0.724]
[1719879551485,6.16988158,3438.1,3437.9,0.724]
[1719879552504,2.90866,3438.0,3437.3,8.22252]
[1719879552815,2.90866,3438.0,3437.9,0.724]
[1719879553179,2.90866,3438.0,3437.3,8.22252]
[1719879553390,2.3604,3437.7,3436.7,3.0]
[1719879553595,2.3604,3437.7,3436.9,0.724]
[1719879553596,2.90927,3437.3,3436.9,0.724]
[1719879553920,2.90927,3437.3,3437.1,0.724]
[1719879553921,0.290927,3437.2,3437.1,0.724]
[1719879554425,5.560667,3437.2,3437.1,0.724]
[1719879554637,3.200267,3437.2,3437.1,0.724]
[1719879554936,2.3604,3437.6,3437.1,0.724]
[1719879555149,3.0,3437.6,3437.4,0.724]
[1719879555301,3.0,3437.6,3436.9,2.2719]
[1719879555302,5.90906,3437.6,3437.5,0.724]
[1719879555822,6.06723124,3437.6,3437.5,0.724]
[1719879556338,5.90906,3437.6,3437.5,0.724]
[1719879556637,7.15247541,3437.6,3437.5,0.724]
[1719879557627,7.15247541,3437.6,3436.9,2.2719]
[1719879557823,2.90916,3437.5,3436.7,3.0]
[1719879558031,2.90916,3437.5,3437.4,0.724]
[1719879558241,6.2802483,3437.5,3437.4,0.724]
[1719879560022,9.1894083,3437.5,3437.4,0.724]
[1719879560548,9.1894083,3437.5,3436.5,2.3601]
[1719879560549,2.90939,3437.2,3436.5,2.3601]
[1719879560847,2.90939,3437.2,3437.1,0.724]
[1719879560998,4.07385683,3437.2,3437.1,0.724]
[1719879561203,4.07385683,3437.2,3436.5,5.27002]
[1719879561527,4.07385683,3437.2,3436.5,2.3601]
[1719879561838,4.07385683,3437.2,3437.1,0.724]
[1719879562209,4.07385683,3437.2,3436.5,2.3601]
[1719879562407,4.07385683,3437.2,3437.1,0.724]
[1719879567821,2.90947,3437.1,3436.5,2.3601]
[1719879568145,2.90947,3437.1,3437.0,0.724]
[1719879569312,3.35950688,3437.1,3437.0,0.724]
[1719879570108,3.50351879,3437.1,3437.0,0.724]
[1719879570541,3.50351879,3437.1,3437.0,0.56805]
[1719879571847,0.59404879,3437.1,3437.0,0.56805]
[1719879572058,0.14401191,3437.1,3437.0,0.56805]
[1719879572208,2.90935,3437.2,3437.0,0.56805]
[1719879572415,2.90935,3437.2,3437.1,0.724]
[1719879572859,2.90935,3437.2,3436.5,5.27003]
[1719879573147,2.90935,3437.2,3437.1,0.724]
[1719879573463,3.791204,3437.2,3437.1,0.724]
[1719879574249,10.07220412,3437.7,3437.1,0.724]
[1719879574435,10.07220412,3437.7,3437.6,0.724]
[1719879574751,5.90892,3437.7,3437.6,0.724]
[1719879577148,6.06711014,3437.7,3437.6,0.724]
[1719879577339,6.57073791,3437.7,3437.6,0.724]
[1719879577865,5.19099,3437.5,3436.5,5.22008]
[1719879578076,2.90926,3437.3,3437.1,0.724]
[1719879578746,2.90926,3437.3,3437.2,0.724]
[1719879578932,2.90934,3437.2,3437.1,0.724]
[1719879579124,2.3875,3437.1,3436.3,3.1191642]
[1719879579357,2.90977,3436.7,3436.3,3.1191642]
[1719879579543,2.90977,3436.7,3436.6,0.724]
[1719879580241,2.90977,3436.7,3436.3,3.1191642]
[1719879580476,8.20643,3437.1,3436.6,0.724]
[1719879580626,0.66187202,3437.0,3436.6,2.3751]
[1719879580836,7.16328412,3437.3,3437.0,3.0991]
[1719879581044,17.45146,3437.8,3437.4,2.90916]
[1719879581045,7.16328412,3437.8,3437.4,2.90916]
[1719879581544,7.48,3438.4,3437.7,0.724]
[1719879581776,2.908,3438.8,3438.3,1.742]
[1719879582078,0.66168214,3438.7,3437.9,2.3751]
[1719879582380,0.15823199,3438.6,3437.9,2.3751]
[1719879582581,0.15823199,3438.5,3437.9,2.3751]
[1719879582751,2.908,3438.8,3438.4,1.742]
[1719879582939,0.66168537,3438.7,3438.4,1.742]
[1719879583139,0.1582307,3438.6,3438.4,1.742]
[1719879583438,0.1582307,3438.5,3438.4,1.742]
[1719879583637,2.90792,3438.9,3438.4,1.742]
[1719879583866,3.15823147,3438.8,3438.0,2.90865]
[1719879584041,0.15823147,3438.7,3438.0,2.90865]
[1719879584238,0.15823147,3438.7,3438.6,1.742]
[1719879585061,0.28842196,3438.7,3438.6,1.742]
[1719879585470,2.2956,3439.6,3438.6,4.0335]
[1719879585813,0.28844787,3439.2,3438.6,4.0335]
[1719879585961,0.13019352,3439.2,3438.6,4.0335]
[1719879586301,0.13019352,3439.2,3438.6,6.94165]
[1719879586461,7.48,3439.7,3439.0,1.742]
[1719879586660,2.90714,3439.8,3439.0,1.742]
[1719879586661,0.28850395,3439.6,3439.0,1.742]
[1719879586910,0.15826803,3439.5,3439.0,1.742]
[1719879587408,0.13023592,3439.4,3439.0,1.742]
[1719879587710,0.881442,3439.6,3439.0,1.742]
[1719879587872,0.28849774,3439.5,3439.0,1.742]
[1719879588063,0.15826182,3439.4,3439.0,1.742]
[1719879588266,0.86598379,3439.4,3439.0,1.742]
[1719879588611,0.13023592,3439.3,3439.0,1.742]
[1719879589588,0.13023592,3439.3,3438.6,6.94165]
[1719879592905,0.13023592,3439.3,3438.7,2.90807]
[1719879593774,0.13023592,3439.3,3438.6,4.0335]
[1719879593775,0.13023592,3439.3,3439.2,2.90765]
[1719879594080,10.38687,3440.2,3439.0,4.64974]
[1719879594290,0.28671054,3440.1,3439.0,1.742]
[1719879594493,0.12842652,3440.1,3439.0,1.742]
[1719879594695,1.28309965,3440.0,3439.0,1.742]
[1719879595221,1.28309965,3440.0,3438.9,2.90789]
[1719879595222,0.12842652,3439.9,3438.9,2.90789]
[1719879595424,0.12842652,3439.9,3439.1,2.90773]
[1719879595581,3.12842652,3439.9,3439.1,2.90773]
[1719879595976,2.90723,3439.7,3438.9,1.742]
[1719879596323,0.46027857,3439.6,3438.9,1.742]
[1719879597741,3.36759857,3439.6,3438.9,1.742]
[1719879597943,2.90749,3439.4,3438.5,1.742]
[1719879598092,0.12878371,3439.3,3438.5,7.65023]
[1719879598413,0.63676778,3439.3,3438.6,2.90815]
[1719879598615,3.0,3439.5,3438.7,2.90805]
[1719879598799,0.12878371,3439.2,3438.7,2.90805]
[1719879599005,3.33140406,3439.6,3438.9,1.742]
[1719879599292,3.0,3439.6,3438.9,1.742]
[1719879599493,0.12876251,3439.5,3438.9,1.742]
[1719879599730,3.0,3439.7,3438.9,1.742]
[1719879600038,0.12876251,3439.6,3438.9,1.742]
[1719879600255,0.12876251,3439.6,3438.9,4.64989]
[1719879600534,0.73235376,3439.6,3438.9,4.64989]
[1719879603009,0.12876251,3439.6,3439.5,5.22509]
[1719879603463,5.32549,3440.4,3439.5,5.22509]
[1719879603744,0.12875041,3440.1,3439.5,5.22509]
[1719879604790,0.12875041,3440.1,3439.7,1.742]
[1719879605047,0.12875041,3440.1,3439.7,4.64921]
[1719879605532,0.12887751,3440.0,3439.7,1.742]
[1719879605708,13.38647,3440.6,3439.7,4.64921]
[1719879605897,0.12887751,3440.5,3439.7,4.64921]
[1719879607610,0.12887751,3440.5,3439.7,4.64916]
[1719879608315,0.12887751,3440.5,3439.8,2.90712]
[1719879609147,2.90648,3440.6,3439.7,1.742]
[1719879609311,4.23822335,3440.5,3439.7,4.64917]
[1719879609506,4.23822335,3440.5,3439.8,2.90712]
[1719879609809,1.23822335,3440.5,3439.8,2.90712]
[1719879610728,0.12897735,3440.5,3439.9,2.90705]
[1719879610913,3.0,3440.8,3439.9,2.90705]
[1719879611247,0.12897735,3440.7,3440.4,2.90662]
[1719879611623,7.48,3441.0,3440.4,2.90662]
[1719879612050,0.12932226,3440.9,3440.4,2.90662]
[1719879612260,3.66724223,3440.8,3440.2,1.742]
[1719879612556,6.11673223,3440.8,3439.8,4.64911]
[1719879612724,6.11673223,3440.8,3439.8,1.742]
[1719879612725,0.12932226,3440.7,3439.8,1.742]
[1719879613358,2.90654,3440.6,3439.4,5.2334]
[1719879613560,2.90656,3440.5,3439.7,2.90722]
[1719879613711,0.12940393,3440.4,3439.7,2.90722]
[1719879615349,0.12940393,3440.4,3439.7,5.90722]
[1719879618222,0.49546087,3440.4,3439.7,5.90722]
[1719879622062,0.12940393,3440.4,3440.0,2.90695]
[1719879622283,0.12940393,3440.4,3440.0,1.742]
[1719879622451,7.48,3441.0,3440.1,2.90689]
[1719879622659,7.48,3441.0,3440.5,1.742]
[1719879623679,5.3425,3441.4,3440.5,1.742]
[1719879623680,5.3425,3441.4,3440.5,6.99189]
[1719879624070,5.3425,3441.4,3440.7,2.90638]
[1719879624449,3.0,3441.3,3440.7,2.90638]
[1719879624777,2.3425,3441.4,3440.7,2.90638]
[1719879624980,5.3425,3441.4,3440.7,2.90638]
[1719879625643,2.4797,3441.8,3440.7,2.90638]
[1719879625846,2.9052,3442.1,3441.1,2.90597]
[1719879626182,0.15842218,3442.0,3441.3,4.64787]
[1719879626345,1.01181222,3442.0,3441.3,4.64787]
[1719879626546,2.4797,3442.2,3441.4,2.90577]
[1719879627445,2.3076,3442.6,3441.7,1.742]
[1719879627644,0.15842456,3442.5,3441.9,2.90536]
[1719879627896,0.15842456,3442.4,3441.9,2.90536]
[1719879628189,7.48,3442.7,3441.9,2.90536]
[1719879628345,0.66133524,3442.6,3441.9,2.90536]
[1719879628542,0.66133052,3442.5,3441.9,2.90536]
[1719879628784,7.48,3442.7,3441.9,2.90536]
[1719879628984,1.69978502,3442.6,3441.9,2.90536]
[1719879629183,1.038454,3442.6,3441.9,2.90536]
[1719879629687,4.038454,3442.6,3441.9,2.90536]
[1719879630263,0.12991187,3442.5,3441.9,2.90536]
[1719879631994,0.16715332,3442.5,3441.9,2.90536]
[1719879632148,0.57604971,3442.4,3441.9,2.90536]
[1719879632659,0.16715332,3442.3,3441.9,2.90536]
[1719879634387,0.16715332,3442.3,3441.7,4.64753]
[1719879635086,0.16715332,3442.3,3441.8,2.90544]
[1719879637291,0.16715332,3442.3,3441.9,2.90535]
[1719879637494,3.0,3442.6,3441.9,2.90535]
[1719879637707,0.16715939,3442.5,3441.9,2.90535]
[1719879638520,5.28365,3442.4,3441.4,4.64778]
[1719879638718,0.16759771,3442.3,3441.4,4.64778]
[1719879639094,3.07264771,3442.3,3441.4,4.64778]
[1719879639281,0.83562977,3442.2,3441.4,4.64778]
[1719879639480,0.16755238,3442.1,3441.4,4.64778]
[1719879640293,0.16755238,3442.1,3441.4,1.742]
[1719879640493,0.16755238,3442.1,3441.1,2.90602]
[1719879640494,3.07283238,3442.1,3441.1,2.90602]
[1719879640817,0.68136322,3442.0,3441.2,2.90595]
[1719879641001,3.58665322,3442.0,3441.2,2.90595]
[1719879641237,0.16747683,3441.9,3441.2,2.90595]
[1719879642035,0.16747683,3441.9,3441.4,1.742]
[1719879642635,2.90517,3442.2,3441.4,1.742]
[1719879642842,0.16747378,3441.8,3441.4,1.742]
[1719879643003,5.28365,3442.4,3441.4,1.742]
[1719879643004,5.2837,3442.4,3441.5,2.90569]
[1719879643636,0.16747078,3442.3,3441.5,2.90569]
[1719879646639,3.07250078,3442.3,3441.5,2.90569]
[1719879648956,0.1584355,3442.2,3441.5,2.90569]
[1719879649310,0.16747078,3442.1,3441.5,2.90569]
[1719879649742,2.90503,3442.3,3441.5,2.90569]
[1719879649944,1.48027475,3442.2,3441.5,2.90569]
[1719879650244,0.16747078,3442.2,3441.5,2.90569]
[1719879650648,3.0,3442.4,3441.8,1.742]
[1719879650813,10.3847,3442.7,3441.8,1.742]
[1719879650814,0.16749797,3442.1,3441.8,1.742]
[1719879651156,3.0,3442.6,3441.8,1.742]
[1719879651157,0.16752819,3442.0,3441.8,1.742]
[1719879651454,3.0,3442.6,3441.8,4.64744]
[1719879651658,10.3847,3442.7,3441.8,4.91612805]
[1719879651659,0.16752819,3441.9,3441.8,4.91612805]
[1719879651958,7.48,3442.7,3441.9,2.90532]
[1719879652153,0.6612988,3442.6,3441.9,2.90532]
[1719879652464,0.50288584,3442.5,3441.9,4.03612011]
[1719879652626,0.16763695,3442.6,3441.9,4.03612011]
[1719879652830,7.48,3442.7,3441.9,4.03612011]
[1719879653138,0.67055527,3442.6,3442.1,2.90519]
[1719879653326,0.50287902,3442.5,3442.1,2.90519]
[1719879653838,0.67055527,3442.4,3442.1,2.90519]
[1719879654032,0.16767625,3442.4,3442.0,2.90528]
[1719879654554,0.50290313,3442.3,3442.0,2.90528]
[1719879654760,0.16767625,3442.3,3442.0,2.90528]
[1719879655260,0.16767625,3442.2,3442.0,2.90528]
[1719879655621,7.48,3442.7,3442.0,2.90528]
[1719879655853,0.66129744,3442.6,3442.0,2.90528]
[1719879656031,0.50288656,3442.5,3442.0,2.90528]
[1719879656544,0.67056281,3442.4,3442.0,2.90528]
[1719879656743,0.50289742,3442.3,3442.0,2.90528]
[1719879656956,0.16767625,3442.4,3442.0,2.90528]
[1719879657117,0.50289703,3442.3,3442.0,2.90528]
[1719879657323,0.16767625,3442.3,3442.0,2.90528]
[1719879657877,0.16767625,3442.2,3442.0,2.90528]
[1719879658228,7.48,3442.7,3442.1,2.96329014]
[1719879658448,7.48,3442.7,3442.3,2.2522]
[1719879658752,0.16769435,3442.6,3442.3,5.15717]
[1719879658954,0.16769435,3442.6,3442.3,5.21526661]
[1719879660445,0.16769435,3442.6,3442.4,2.90489]
[1719879660638,0.16769435,3442.6,3442.5,3.89108966]
[1719879660872,7.48,3443.1,3442.6,2.90471]
[1719879661179,7.48,3443.1,3442.6,4.64671]
[1719879661333,0.16828943,3443.0,3442.6,4.64671]
[1719879661833,0.16828943,3443.0,3442.7,2.90469]
[1719879662031,0.16828943,3443.0,3442.9,5.34512]
[1719879662472,0.16828943,3443.0,3442.9,8.30772442]
[1719879663454,2.90353,3444.1,3443.1,2.90428]
[1719879663650,0.66106204,3444.0,3443.2,1.742]
[1719879663853,0.66105989,3443.9,3443.2,1.742]
[1719879664180,2.90361,3444.0,3443.2,1.742]
[1719879664477,4.41017345,3443.9,3443.2,1.742]
[1719879664667,0.15835134,3443.8,3443.2,1.742]
[1719879665375,0.16840416,3443.7,3443.2,1.742]
[1719879665938,0.16840416,3443.6,3443.2,1.742]
[1719879666155,5.9037,3443.9,3443.2,1.742]
[1719879666360,0.32675778,3443.8,3443.2,1.742]
[1719879666604,0.16840416,3443.8,3443.2,1.742]
[1719879667385,0.15835403,3443.7,3443.2,2.74694809]
[1719879667697,2.90357,3444.1,3443.3,0.05808082]
[1719879668006,0.15834483,3444.0,3443.3,2.463]
[1719879668301,0.16847359,3443.9,3443.3,2.463]
[1719879668604,0.16847359,3443.9,3443.4,2.96214818]
[1719879668907,2.9034,3444.3,3443.5,1.10763663]
[1719879669192,0.16847359,3444.2,3443.6,1.80007591]
[1719879669404,2.90305,3444.7,3444.0,1.742]
[1719879669601,0.32681505,3444.6,3444.0,1.742]
[1719879669762,0.15832033,3444.5,3444.0,1.742]
[1719879670099,0.16869397,3444.4,3444.0,1.742]
[1719879670455,0.16869397,3444.4,3444.0,2.50409499]
[1719879670659,2.90268,3445.1,3444.1,2.90351]
[1719879670861,0.16878452,3444.3,3444.1,2.96157405]
[1719879671111,2.90284,3444.9,3444.1,2.96157405]
[1719879671323,2.90284,3444.9,3444.2,0.831127]
[1719879671508,0.16914666,3444.8,3444.1,2.96157405]
[1719879672183,0.14114666,3444.8,3444.3,5.29778]
[1719879672527,2.90259,3445.2,3444.3,5.29778]
[1719879672721,0.16832796,3444.7,3444.3,5.29778]
[1719879672899,2.90259,3445.2,3444.3,6.3625026]
[1719879673100,0.16832796,3444.6,3444.3,5.29778]
[1719879673300,2.90259,3445.2,3444.3,5.29778]
[1719879673493,0.16832796,3444.5,3444.4,1.742]
[1719879673693,2.90259,3445.2,3444.4,1.742]
[1719879673905,4.030751,3445.2,3444.4,1.742]
[1719879674183,3.07103115,3445.1,3444.4,1.742]
[1719879674480,2.90296,3444.8,3443.9,5.39687]
[1719879674922,0.16839433,3444.7,3444.0,2.90359]
[1719879675127,0.16839433,3444.7,3444.1,1.013879]
[1719879676291,2.90282,3445.0,3444.1,1.013879]
[1719879676509,0.16842146,3444.6,3444.0,2.90359]
[1719879676707,2.90289,3444.9,3444.0,2.90359]
[1719879676907,0.1684245,3444.5,3444.0,2.90359]
[1719879677114,2.90289,3444.9,3444.0,2.90359]
[1719879677314,0.1684245,3444.4,3444.0,2.90359]
[1719879677509,0.1684245,3444.4,3444.0,4.207843]
[1719879677786,0.1684245,3444.3,3444.0,1.304253]
[1719879677986,2.90321,3444.5,3443.9,2.4932]
[1719879678222,2.90302,3444.7,3443.4,4.742]
[1719879678223,3.0716975,3444.4,3443.4,4.742]
[1719879678427,3.0716975,3444.4,3443.2,5.90425]
[1719879678428,2.90366,3444.0,3443.2,2.4681]
[1719879678641,2.90346,3444.2,3443.3,2.90416]
[1719879678847,10.38334,3444.3,3443.4,0.05807554]
[1719879679051,0.1684275,3444.1,3443.4,0.05807554]
[1719879679212,2.90344,3444.2,3443.3,3.90602]
[1719879679552,7.48,3444.3,3443.2,2.4681]
[1719879679553,3.0719575,3444.1,3443.2,2.4681]
[1719879679857,2.90379,3443.8,3442.9,2.4681]
[1719879680519,0.1682646,3443.7,3442.9,2.4681]
[1719879680847,0.1682646,3443.7,3442.9,5.37256]
[1719879681043,0.1682646,3443.7,3443.0,4.206354]
[1719879681256,2.90368,3443.9,3443.1,1.742]
[1719879681462,0.16796588,3443.6,3443.1,1.742]
[1719879681745,0.16796588,3443.6,3443.1,2.5836454]
[1719879681930,2.90377,3443.8,3443.1,2.5836454]
[1719879682110,0.16796588,3443.5,3443.1,2.5836454]
[1719879682308,2.90377,3443.8,3443.1,2.5836454]
[1719879682507,0.16797494,3443.4,3443.1,2.5836454]
[1719879682833,7.48,3444.3,3443.1,2.5836454]
[1719879682834,7.48,3444.3,3443.6,5.32393]
[1719879683020,7.48,3444.3,3443.8,4.64576]
[1719879683536,7.48,3444.3,3443.9,0.05806698]
[1719879683752,2.90303,3444.7,3443.9,0.05806698]
[1719879684256,2.90303,3444.7,3443.8,4.64576]
[1719879684426,2.90303,3444.7,3443.8,5.942729]
[1719879684823,2.90313,3444.6,3443.8,3.038969]
[1719879686794,2.90313,3444.6,3443.8,5.942719]
[1719879686970,2.90298,3444.8,3443.9,0.0580669]
[1719879687155,2.90302,3444.7,3444.0,0.60007859]
[1719879687853,2.9031,3444.6,3444.0,0.60007859]
[1719879688076,2.9031,3444.6,3443.8,3.038969]
[1719879688077,2.9031,3444.6,3443.8,1.742]
[1719879688591,0.50264261,3444.5,3443.8,1.742]
[1719879688749,2.9031,3444.6,3443.8,1.742]
[1719879689136,2.90334,3444.3,3443.6,2.42]
[1719879689442,2.90334,3444.3,3443.6,3.5428]
[1719879690243,0.16803831,3444.2,3443.6,3.5428]
[1719879691361,2.90303,3444.7,3443.6,3.5428]
[1719879691362,2.90303,3444.7,3443.7,0.05807055]
[1719879691569,2.90285,3444.9,3443.8,2.75055412]
[1719879691780,0.16802321,3444.8,3443.9,2.90362]
[1719879691951,0.16802321,3444.8,3444.0,2.96165512]
[1719879692172,0.16802321,3444.8,3444.1,2.4075]
[1719879692354,0.16802321,3444.8,3444.2,0.05806512]
[1719879692685,5.9026,3445.2,3444.2,4.70349512]
[1719879692848,0.16802321,3444.7,3444.3,0.05805996]
[1719879693178,0.16805337,3444.6,3444.3,0.05805996]
[1719879693558,5.90267,3445.1,3444.3,0.05805996]
[1719879693741,0.16805337,3444.5,3444.4,0.79171543]
[1719879693943,5.90267,3445.1,3444.4,0.79171543]
[1719879694168,0.16805337,3444.5,3444.2,4.64543]
[1719879694549,2.90279,3445.0,3444.2,4.64543]
[1719879694746,7.48,3445.3,3444.3,5.44396109]
[1719879694950,0.16805337,3444.9,3444.6,1.742]
[1719879695164,2.90219,3445.7,3444.7,0.1742]
[1719879695485,2.90239,3445.5,3444.7,0.1742]
[1719879695785,2.90239,3445.5,3444.6,4.64506]
[1719879695990,0.16260846,3445.4,3444.6,4.64506]
[1719879700585,2.90259,3445.2,3444.3,8.28923]
[1719879700782,2.90278,3445.0,3444.3,2.3859]
[1719879701092,0.16266576,3444.9,3444.3,2.3859]
[1719879701314,0.16266576,3444.9,3443.9,2.2537]
[1719879701452,0.15830895,3444.8,3443.9,2.2537]
[1719879701653,0.32097471,3444.7,3443.9,2.2537]
[1719879701858,2.90311,3444.6,3443.9,3.069444]
[1719879702293,0.16266576,3444.5,3443.9,3.069444]
[1719879702497,0.16266576,3444.5,3443.9,2.2537]
[1719879702860,2.90303,3444.7,3443.9,2.2537]
[1719879703055,0.32093551,3444.6,3443.9,2.2537]
[1719879703306,0.16261449,3444.6,3444.0,2.90359]
[1719879703826,2.90284,3444.9,3444.0,2.96165529]
[1719879703983,0.15830369,3444.8,3444.0,4.24776582]
[1719879704311,0.16261449,3444.7,3444.0,4.24776582]
[1719879704517,0.15830369,3444.6,3444.0,4.24776582]
[1719879705135,0.16261449,3444.5,3444.0,4.24776582]
[1719879705288,0.16261449,3444.5,3444.1,4.01822158]
[1719879705490,2.90284,3444.9,3444.1,4.01822158]
[1719879705727,0.16261449,3444.4,3444.1,4.01822158]
[1719879705914,2.90284,3444.9,3444.1,4.01822158]
[1719879706222,0.16261449,3444.3,3444.1,4.01822158]
[1719879706421,7.48,3445.0,3444.2,0.86526406]
[1719879706622,0.15830545,3444.9,3444.3,2.90327]
[1719879706799,0.15830545,3444.9,3444.3,4.64527]
[1719879707585,0.15830545,3444.9,3444.3,2.90327]
[1719879709525,4.36916131,3444.9,3443.9,6.89935]
[1719879709720,4.36916131,3444.9,3443.9,2.2537]
[1719879709721,2.90301,3444.7,3443.9,2.2537]
[1719879709916,2.90319,3444.5,3443.6,5.16251]
[1719879710240,3.06157545,3444.4,3443.6,5.16251]
[1719879710449,0.15830545,3444.3,3443.6,5.16251]
[1719879712351,3.40607737,3444.2,3443.6,2.2586]
[1719879712523,1.3077181,3444.1,3443.3,2.90418]
[1719879712727,0.66095282,3444.0,3442.8,5.3823]
[1719879713042,2.90395,3443.6,3442.6,2.90475]
[1719879713266,0.15830545,3443.5,3442.7,0.290475]
[1719879713762,0.15830545,3443.5,3442.8,2.9046]
[1719879713971,0.15830545,3443.4,3442.9,0.3195075]
[1719879714140,0.15830545,3443.3,3442.9,0.3195075]
[1719879714341,2.90377,3443.8,3442.8,2.9046]
[1719879714560,0.66110971,3443.7,3442.8,2.9046]
[1719879714728,0.15836054,3443.6,3442.8,2.9046]
[1719879714928,2.90418,3443.4,3442.5,4.742]
[1719879715244,2.90418,3443.4,3442.4,2.4777]
[1719879715245,3.06255054,3443.3,3442.4,2.4777]
[1719879715446,0.15836054,3443.2,3442.2,2.90507]
[1719879715760,2.90437,3443.1,3442.2,2.90507]
[1719879715926,0.15836054,3443.0,3442.3,0.991677]
[1719879716337,0.15836054,3443.0,3442.0,2.2697]
[1719879716537,7.83653194,3443.4,3442.0,2.2697]
[1719879716538,0.15836054,3442.9,3442.0,2.2697]
[1719879716744,2.90476,3442.7,3441.8,2.9054]
[1719879716940,2.90476,3442.7,3441.9,2.90537]
[1719879717139,2.90458,3442.9,3441.9,2.90537]
[1719879717379,0.16209246,3442.6,3441.9,2.90537]
[1719879717535,3.06663793,3442.8,3441.9,2.90537]
[1719879717739,3.06663793,3442.8,3442.0,0.7187634]
[1719879719041,0.16200793,3442.8,3442.0,3.6239834]
[1719879719273,2.90444,3443.0,3442.0,3.6239834]
[1719879719482,0.32027774,3442.9,3442.0,3.6239834]
[1719879719683,0.16191737,3442.9,3442.1,0.36239834]
[1719879720477,0.16191737,3442.9,3442.2,2.9051]
[1719879722255,0.16191737,3442.9,3442.3,2.905]
[1719879722592,2.90428,3443.2,3442.4,1.742]
[1719879722789,0.16186904,3442.8,3442.5,0.75521]
[1719879722974,2.90419,3443.3,3442.5,0.75521]
[1719879723175,0.16186001,3442.7,3442.5,0.75521]
[1719879723345,0.16186001,3442.7,3442.6,0.771465]
[1719879723545,2.90419,3443.3,3442.6,0.771465]
[1719879723788,0.16186001,3442.7,3442.5,0.75521]
[1719879723987,2.90419,3443.3,3442.5,0.75521]
[1719879724190,0.16186001,3442.6,3442.5,0.75521]
[1719879724494,2.90419,3443.3,3442.5,0.75521]
[1719879724906,0.16187208,3443.2,3442.4,2.90494]
[1719879725108,0.16187208,3443.2,3442.2,2.9051]
[1719879725109,2.90437,3443.1,3442.2,2.9051]
[1719879725311,2.90437,3443.1,3442.1,4.742]
[1719879725595,2.90453,3442.9,3442.1,3.0]
[1719879725783,2.90453,3442.9,3442.1,4.116332]
[1719879725960,0.16188112,3442.8,3442.1,4.116332]
[1719879727458,0.16188112,3442.8,3442.1,7.021512]
[1719879727655,0.16188112,3442.8,3442.2,2.90511]
[1719879727962,2.90427,3443.2,3442.4,2.90491]
[1719879728496,0.16182074,3443.1,3442.4,2.90491]